fUSD/lending_fUSD_20260621
["ID","MTS","AMOUNT","RATE_DAILY","PERIOD"]
[425869056,1782012656000,-500.0,0.00029863,2]
[425869055,1782012656000,-500.0,0.00029863,2]
[425869062,1782012656000,-500.0,0.00029863,2]
[425869061,1782012656000,-914.86,0.00029863,2]
[425869054,1782012656000,-500.0,0.00029863,2]
[425869093,1782012656000,-500.0,0.00029863,2]
[425869090,1782012656000,-547.31,0.00029863,2]
[425869088,1782012656000,-500.0,0.00029863,2]
[425869118,1782012656000,-500.0,0.00029863,2]
[425869120,1782012656000,-513.02974227,0.00029863,2]
[425869119,1782012656000,-500.0,0.00029863,2]
[425869122,1782012656000,-500.0,0.00029863,2]
[425869121,1782012656000,-500.0,0.00029863,2]
[425869123,1782012656000,-503.93,0.00029863,2]
[425869127,1782012656000,-500.0,0.00029863,2]
[425869133,1782012656000,-500.0,0.00029863,2]
[425869132,1782012656000,-500.0,0.00029863,2]
[425869124,1782012656000,-500.0,0.00029863,2]
[425869130,1782012656000,-500.0,0.00029863,2]
[425869126,1782012656000,-500.0,0.00029863,2]
[425869129,1782012656000,-500.0,0.00029863,2]
[425869128,1782012656000,-500.0,0.00029863,2]
[425869131,1782012656000,-538.99546078,0.00029863,2]
[425869137,1782012656000,-803.07,0.00029863,2]
[425869134,1782012656000,-500.0,0.00029863,2]
[425869139,1782012656000,-976.58,0.00029863,2]
[425869135,1782012656000,-500.0,0.00029863,2]
[425869138,1782012656000,-500.0,0.00029863,2]
[425869087,1782012656000,-903.84,0.00029863,2]
[425869116,1782012656000,-500.0,0.00029863,2]
[425869117,1782012656000,-500.0,0.00029863,2]
[425869125,1782012656000,-500.0,0.00029863,2]
[425869115,1782012656000,-500.0,0.00029863,2]
[425869092,1782012656000,-500.0,0.00029863,2]
[425869114,1782012656000,-549.89034808,0.00029863,2]
[425869096,1782012656000,-513.70317691,0.00029863,2]
[425869136,1782012656000,-500.0,0.00029863,2]
[425869091,1782012656000,-500.0,0.00029863,2]
[425869095,1782012656000,-712.59,0.00029863,2]
[425869089,1782012656000,-500.0,0.00029863,2]
[425869102,1782012656000,-500.0,0.00029863,2]
[425869101,1782012656000,-500.0,0.00029863,2]
[425869099,1782012656000,-514.45562831,0.00029863,2]
[425869100,1782012656000,-500.0,0.00029863,2]
[425869098,1782012656000,-500.0,0.00029863,2]
[425869110,1782012656000,-500.0,0.00029863,2]
[425869112,1782012656000,-500.0,0.00029863,2]
[425869103,1782012656000,-500.0,0.00029863,2]
[425869109,1782012656000,-500.0,0.00029863,2]
[425869111,1782012656000,-500.0,0.00029863,2]
[425869108,1782012656000,-500.0,0.00029863,2]
[425869113,1782012656000,-500.0,0.00029863,2]
[425869107,1782012656000,-500.0,0.00029863,2]
[425869106,1782012656000,-500.0,0.00029863,2]
[425869104,1782012656000,-500.0,0.00029863,2]
[425869105,1782012656000,-585.76976104,0.00029863,2]
[425869185,1782012657000,-500.0,0.00029863,2]
[425869170,1782012657000,-500.0,0.00029863,2]
[425869169,1782012657000,-675.36,0.00029863,2]
[425869162,1782012657000,-500.0,0.00029863,2]
[425869171,1782012657000,-500.0,0.00029863,2]
[425869167,1782012657000,-500.0,0.00029863,2]
[425869164,1782012657000,-500.0,0.00029863,2]
[425869166,1782012657000,-500.0,0.00029863,2]
[425869175,1782012657000,-500.0,0.00029863,2]
[425869174,1782012657000,-500.0,0.00029863,2]
[425869197,1782012657000,-500.0,0.00029863,2]
[425869178,1782012657000,-500.0,0.00029863,2]
[425869177,1782012657000,-656.48,0.00029863,2]
[425869181,1782012657000,-500.0,0.00029863,2]
[425869179,1782012657000,-500.0,0.00029863,2]
[425869180,1782012657000,-841.98,0.00029863,2]
[425869182,1782012657000,-744.44,0.00029863,2]
[425869183,1782012657000,-500.0,0.00029863,2]
[425869186,1782012657000,-612.22,0.00029863,2]
[425869188,1782012657000,-500.0,0.00029863,2]
[425869168,1782012657000,-500.0,0.00029863,2]
[425869176,1782012657000,-500.0,0.00029863,2]
[425869172,1782012657000,-500.0,0.00029863,2]
[425869140,1782012657000,-500.0,0.00029863,2]
[425869173,1782012657000,-500.0,0.00029863,2]
[425869141,1782012657000,-500.0,0.00029863,2]
[425869191,1782012657000,-500.0,0.00029863,2]
[425869143,1782012657000,-500.0,0.00029863,2]
[425869147,1782012657000,-500.0,0.00029863,2]
[425869144,1782012657000,-391.00625191,0.00029863,2]
[425869145,1782012657000,-500.0,0.00029863,2]
[425869148,1782012657000,-500.0,0.00029863,2]
[425869142,1782012657000,-500.0,0.00029863,2]
[425869146,1782012657000,-500.0,0.00029863,2]
[425869150,1782012657000,-500.0,0.00029863,2]
[425869149,1782012657000,-500.0,0.00029863,2]
[425869160,1782012657000,-500.0,0.00029863,2]
[425869159,1782012657000,-500.0,0.00029863,2]
[425869154,1782012657000,-719.24,0.00029863,2]
[425869158,1782012657000,-458.58190803,0.00029863,2]
[425869152,1782012657000,-500.0,0.00029863,2]
[425869151,1782012657000,-787.98,0.00029863,2]
[425869153,1782012657000,-500.0,0.00029863,2]
[425869155,1782012657000,-500.0,0.00029863,2]
[425869156,1782012657000,-500.0,0.00029863,2]
[425869157,1782012657000,-500.0,0.00029863,2]
[425869163,1782012657000,-500.0,0.00029863,2]
[425869161,1782012657000,-500.0,0.00029863,2]
[425869165,1782012657000,-500.0,0.00029863,2]
[425869196,1782012657000,-500.0,0.00029863,2]
[425869184,1782012657000,-513.47549398,0.00029863,2]
[425869193,1782012657000,-500.0,0.00029863,2]
[425869219,1782012657000,-500.0,0.00029863,2]
[425869221,1782012657000,-500.0,0.00029863,2]
[425869224,1782012657000,-500.0,0.00029863,2]
[425869228,1782012657000,-5357.3,0.00029863,2]
[425869229,1782012657000,-500.0,0.00029863,2]
[425869225,1782012657000,-500.0,0.00029863,2]
[425869222,1782012657000,-500.0,0.00029863,2]
[425869226,1782012657000,-500.0,0.00029863,2]
[425869227,1782012657000,-500.0,0.00029863,2]
[425869220,1782012657000,-40687.380737,0.00029863,2]
[425869241,1782012657000,-500.0,0.00029863,2]
[425869231,1782012657000,-500.0,0.00029863,2]
[425869232,1782012657000,-500.0,0.00029863,2]
[425869234,1782012657000,-500.0,0.00029863,2]
[425869230,1782012657000,-500.0,0.00029863,2]
[425869237,1782012657000,-500.0,0.00029863,2]
[425869239,1782012657000,-500.0,0.00029863,2]
[425869238,1782012657000,-500.0,0.00029863,2]
[425869235,1782012657000,-508.0,0.00029863,2]
[425869240,1782012657000,-500.0,0.00029863,2]
[425869236,1782012657000,-500.0,0.00029863,2]
[425869242,1782012657000,-500.0,0.00029863,2]
[425869192,1782012657000,-500.0,0.00029863,2]
[425869223,1782012657000,-500.0,0.00029863,2]
[425869214,1782012657000,-500.0,0.00029863,2]
[425869233,1782012657000,-1056.49,0.00029863,2]
[425869218,1782012657000,-500.0,0.00029863,2]
[425869189,1782012657000,-500.0,0.00029863,2]
[425869215,1782012657000,-500.0,0.00029863,2]
[425869195,1782012657000,-500.0,0.00029863,2]
[425869194,1782012657000,-619.0,0.00029863,2]
[425869187,1782012657000,-902.92,0.00029863,2]
[425869190,1782012657000,-541.87,0.00029863,2]
[425869199,1782012657000,-500.0,0.00029863,2]
[425869202,1782012657000,-500.0,0.00029863,2]
[425869207,1782012657000,-185.64,0.00029863,2]
[425869206,1782012657000,-576.792695,0.00029863,2]
[425869205,1782012657000,-500.0,0.00029863,2]
[425869198,1782012657000,-500.0,0.00029863,2]
[425869210,1782012657000,-500.0,0.00029863,2]
[425869204,1782012657000,-612.31,0.00029863,2]
[425869200,1782012657000,-500.0,0.00029863,2]
[425869203,1782012657000,-817.18,0.00029863,2]
[425869208,1782012657000,-500.0,0.00029863,2]
[425869212,1782012657000,-705.75,0.00029863,2]
[425869209,1782012657000,-500.0,0.00029863,2]
[425869211,1782012657000,-500.0,0.00029863,2]
[425869213,1782012657000,-500.0,0.00029863,2]
[425869216,1782012657000,-509.70331562,0.00029863,2]
[425869217,1782012657000,-165.44810351,0.00029863,2]
[425869201,1782012657000,-500.0,0.00029863,2]
[425869292,1782012658000,-500.0,0.00029863,2]
[425869270,1782012658000,-500.0,0.00029863,2]
[425869281,1782012658000,-302.52690969,0.00029863,2]
[425869280,1782012658000,-500.0,0.00029863,2]
[425869282,1782012658000,-500.0,0.00029863,2]
[425869291,1782012658000,-500.0,0.00029863,2]
[425869268,1782012658000,-500.0,0.00029863,2]
[425869277,1782012658000,-500.0,0.00029863,2]
[425869275,1782012658000,-500.0,0.00029863,2]
[425869271,1782012658000,-500.0,0.00029863,2]
[425869283,1782012658000,-500.0,0.00029863,2]
[425869273,1782012658000,-500.0,0.00029863,2]
[425869287,1782012658000,-500.0,0.00029863,2]
[425869295,1782012658000,-538.09515493,0.00029863,2]
[425869285,1782012658000,-500.0,0.00029863,2]
[425869290,1782012658000,-500.0,0.00029863,2]
[425869288,1782012658000,-500.0,0.00029863,2]
[425869286,1782012658000,-3871.46,0.00029863,2]
[425869293,1782012658000,-1522.91,0.00029863,2]
[425869305,1782012658000,-500.0,0.00029863,2]
[425869296,1782012658000,-500.0,0.00029863,2]
[425869303,1782012658000,-500.0,0.00029863,2]
[425869297,1782012658000,-500.0,0.00029863,2]
[425869299,1782012658000,-500.0,0.00029863,2]
[425869298,1782012658000,-500.0,0.00029863,2]
[425869294,1782012658000,-500.0,0.00029863,2]
[425869279,1782012658000,-557.95,0.00029863,2]
[425869289,1782012658000,-500.0,0.00029863,2]
[425869272,1782012658000,-500.0,0.00029863,2]
[425869243,1782012658000,-500.0,0.00029863,2]
[425869276,1782012658000,-500.0,0.00029863,2]
[425869301,1782012658000,-702.36,0.00029863,2]
[425869244,1782012658000,-500.0,0.00029863,2]
[425869246,1782012658000,-500.0,0.00029863,2]
[425869247,1782012658000,-500.0,0.00029863,2]
[425869245,1782012658000,-607.86865031,0.00029863,2]
[425869253,1782012658000,-500.0,0.00029863,2]
[425869248,1782012658000,-500.0,0.00029863,2]
[425869250,1782012658000,-500.0,0.00029863,2]
[425869251,1782012658000,-349.70458824,0.00029863,2]
[425869249,1782012658000,-503.92,0.00029863,2]
[425869252,1782012658000,-629.12679171,0.00029863,2]
[425869266,1782012658000,-500.0,0.00029863,2]
[425869265,1782012658000,-500.0,0.00029863,2]
[425869255,1782012658000,-824.01,0.00029863,2]
[425869254,1782012658000,-500.0,0.00029863,2]
[425869256,1782012658000,-500.0,0.00029863,2]
[425869257,1782012658000,-543.6393304,0.00029863,2]
[425869259,1782012658000,-500.0,0.00029863,2]
[425869258,1782012658000,-500.0,0.00029863,2]
[425869264,1782012658000,-471.34774181,0.00029863,2]
[425869261,1782012658000,-426.45775323,0.00029863,2]
[425869260,1782012658000,-960.47,0.00029863,2]
[425869262,1782012658000,-500.0,0.00029863,2]
[425869263,1782012658000,-500.0,0.00029863,2]
[425869267,1782012658000,-1276.27,0.00029863,2]
[425869269,1782012658000,-500.0,0.00029863,2]
[425869278,1782012658000,-500.0,0.00029863,2]
[425869274,1782012658000,-730.6,0.00029863,2]
[425869300,1782012658000,-500.0,0.00029863,2]
[425869284,1782012658000,-500.0,0.00029863,2]
[425869302,1782012658000,-500.0,0.00029863,2]
[425869335,1782012658000,-488.21093609,0.00029863,2]
[425869340,1782012658000,-500.0,0.00029863,2]
[425869334,1782012658000,-500.0,0.00029863,2]
[425869339,1782012658000,-500.0,0.00029863,2]
[425869338,1782012658000,-500.0,0.00029863,2]
[425869349,1782012658000,-219.610538,0.00029863,7]
[425869343,1782012658000,-633.65,0.00029863,2]
[425869345,1782012658000,-500.0,0.00029863,2]
[425869351,1782012658000,-500.0,0.00029863,2]
[425869347,1782012658000,-500.0,0.00029863,2]
[425869342,1782012658000,-640.65051963,0.00029863,2]
[425869346,1782012658000,-736.55,0.00029863,2]
[425869350,1782012658000,-500.0,0.00029863,2]
[425869344,1782012658000,-500.0,0.00029863,2]
[425869348,1782012658000,-500.0,0.00029863,2]
[425869357,1782012658000,-518.86,0.00029863,2]
[425869358,1782012658000,-572.91516203,0.00029863,2]
[425869354,1782012658000,-219.610538,0.00029863,7]
[425869356,1782012658000,-500.0,0.00029863,2]
[425869352,1782012658000,-219.610538,0.00029863,7]
[425869355,1782012658000,-219.610538,0.00029863,7]
[425869353,1782012658000,-551.76,0.00029863,2]
[425869359,1782012658000,-484.14,0.00029863,2]
[425869361,1782012658000,-500.0,0.00029863,2]
[425869363,1782012658000,-742.68,0.00029863,2]
[425869360,1782012658000,-500.0,0.00029863,2]
[425869304,1782012658000,-500.0,0.00029863,2]
[425869332,1782012658000,-500.0,0.00029863,2]
[425869333,1782012658000,-500.0,0.00029863,2]
[425869364,1782012658000,-500.0,0.00029863,2]
[425869337,1782012658000,-500.0,0.00029863,2]
[425869307,1782012658000,-500.0,0.00029863,2]
[425869308,1782012658000,-500.0,0.00029863,2]
[425869312,1782012658000,-500.0,0.00029863,2]
[425869317,1782012658000,-500.0,0.00029863,2]
[425869310,1782012658000,-610.63,0.00029863,2]
[425869311,1782012658000,-500.0,0.00029863,2]
[425869306,1782012658000,-500.0,0.00029863,2]
[425869313,1782012658000,-500.0,0.00029863,2]
[425869315,1782012658000,-500.0,0.00029863,2]
[425869314,1782012658000,-2258.91,0.00029863,2]
[425869316,1782012658000,-500.0,0.00029863,2]
[425869319,1782012658000,-500.0,0.00029863,2]
[425869318,1782012658000,-500.0,0.00029863,2]
[425869309,1782012658000,-530.08,0.00029863,2]
[425869328,1782012658000,-500.0,0.00029863,2]
[425869341,1782012658000,-37296.765676,0.00029863,2]
[425869320,1782012658000,-500.0,0.00029863,2]
[425869330,1782012658000,-500.0,0.00029863,2]
[425869331,1782012658000,-500.0,0.00029863,2]
[425869321,1782012658000,-500.0,0.00029863,2]
[425869326,1782012658000,-197.74,0.00029863,2]
[425869324,1782012658000,-319.8257739,0.00029863,2]
[425869336,1782012658000,-500.0,0.00029863,2]
[425869322,1782012658000,-500.0,0.00029863,2]
[425869325,1782012658000,-500.0,0.00029863,2]
[425869323,1782012658000,-505.23,0.00029863,2]
[425869327,1782012658000,-500.0,0.00029863,2]
[425869362,1782012658000,-407.64,0.00029863,2]
[425869329,1782012658000,-230.17,0.00029863,2]
[425869406,1782012659000,-585.1,0.00029863,2]
[425869409,1782012659000,-500.0,0.00029863,2]
[425869402,1782012659000,-530.07,0.00029863,2]
[425869411,1782012659000,-582.64,0.00029863,2]
[425869398,1782012659000,-500.0,0.00029863,2]
[425869395,1782012659000,-500.0,0.00029863,2]
[425869394,1782012659000,-500.0,0.00029863,2]
[425869391,1782012659000,-2272.38,0.00029863,2]
[425869392,1782012659000,-1173.97,0.00029863,2]
[425869407,1782012659000,-500.0,0.00029863,2]
[425869397,1782012659000,-384.2,0.00029863,2]
[425869393,1782012659000,-500.0,0.00029863,2]
[425869425,1782012659000,-637.71,0.00029863,2]
[425869413,1782012659000,-500.0,0.00029863,2]
[425869408,1782012659000,-500.0,0.00029863,2]
[425869405,1782012659000,-1588.97,0.00029863,2]
[425869412,1782012659000,-567.84,0.00029863,2]
[425869404,1782012659000,-500.0,0.00029863,2]
[425869410,1782012659000,-500.0,0.00029863,2]
[425869415,1782012659000,-500.0,0.00029863,2]
[425869414,1782012659000,-500.0,0.00029863,2]
[425869424,1782012659000,-500.0,0.00029863,2]
[425869421,1782012659000,-500.0,0.00029863,2]
[425869423,1782012659000,-500.0,0.00029863,2]
[425869422,1782012659000,-500.0,0.00029863,2]
[425869396,1782012659000,-500.0,0.00029863,2]
[425869403,1782012659000,-500.0,0.00029863,2]
[425869399,1782012659000,-500.0,0.00029863,2]
[425869377,1782012659000,-500.0,0.00029863,2]
[425869389,1782012659000,-6656.18,0.00029863,2]
[425869416,1782012659000,-500.0,0.00029863,2]
[425869372,1782012659000,-1184.42,0.00029863,2]
[425869365,1782012659000,-500.0,0.00029863,2]
[425869369,1782012659000,-561.97,0.00029863,2]
[425869367,1782012659000,-295.36,0.00029863,2]
[425869375,1782012659000,-500.0,0.00029863,2]
[425869366,1782012659000,-168.64796585,0.00029863,2]
[425869370,1782012659000,-500.0,0.00029863,2]
[425869376,1782012659000,-583.69,0.00029863,2]
[425869371,1782012659000,-500.0,0.00029863,2]
[425869368,1782012659000,-219.59,0.00029863,2]
[425869374,1782012659000,-500.0,0.00029863,2]
[425869401,1782012659000,-175.39383924,0.00029863,2]
[425869373,1782012659000,-863.82,0.00029863,2]
[425869380,1782012659000,-500.0,0.00029863,2]
[425869386,1782012659000,-500.0,0.00029863,2]
[425869379,1782012659000,-500.0,0.00029863,2]
[425869378,1782012659000,-500.0,0.00029863,2]
[425869388,1782012659000,-5214.95,0.00029863,2]
[425869385,1782012659000,-500.0,0.00029863,2]
[425869387,1782012659000,-500.0,0.00029863,2]
[425869383,1782012659000,-500.0,0.00029863,2]
[425869384,1782012659000,-500.0,0.00029863,2]
[425869382,1782012659000,-530.00927069,0.00029863,2]
[425869400,1782012659000,-500.0,0.00029863,2]
[425869390,1782012659000,-500.0,0.00029863,2]
[425869381,1782012659000,-500.0,0.00029863,2]
[425869419,1782012659000,-542.74,0.00029863,2]
[425869417,1782012659000,-500.0,0.00029863,2]
[425869418,1782012659000,-500.0,0.00029863,2]
[425869455,1782012659000,-500.0,0.00029863,2]
[425869457,1782012659000,-500.0,0.00029863,2]
[425869458,1782012659000,-500.0,0.00029863,2]
[425869460,1782012659000,-500.0,0.00029863,2]
[425869459,1782012659000,-985.28,0.00029863,2]
[425869462,1782012659000,-500.0,0.00029863,2]
[425869461,1782012659000,-500.0,0.00029863,2]
[425869463,1782012659000,-236.71766486,0.00029863,2]
[425869464,1782012659000,-500.0,0.00029863,2]
[425869465,1782012659000,-500.0,0.00029863,2]
[425869471,1782012659000,-695.42,0.00029863,2]
[425869466,1782012659000,-500.0,0.00029863,2]
[425869456,1782012659000,-543.22508646,0.00029863,2]
[425869470,1782012659000,-500.0,0.00029863,2]
[425869469,1782012659000,-515.08,0.00029863,2]
[425869472,1782012659000,-500.0,0.00029863,2]
[425869480,1782012659000,-500.0,0.00029863,2]
[425869478,1782012659000,-500.0,0.00029863,2]
[425869481,1782012659000,-1244.33,0.00029863,2]
[425869474,1782012659000,-500.0,0.00029863,2]
[425869475,1782012659000,-500.0,0.00029863,2]
[425869477,1782012659000,-302.85366902,0.00029863,2]
[425869476,1782012659000,-500.0,0.00029863,2]
[425869473,1782012659000,-500.0,0.00029863,2]
[425869482,1782012659000,-535.05,0.00029863,2]
[425869479,1782012659000,-3175.38,0.00029863,2]
[425869468,1782012659000,-567.17,0.00029863,2]
[425869451,1782012659000,-3786.61,0.00029863,2]
[425869467,1782012659000,-736.73,0.00029863,2]
[425869452,1782012659000,-500.0,0.00029863,2]
[425869420,1782012659000,-500.0,0.00029863,2]
[425869454,1782012659000,-629.18342118,0.00029863,2]
[425869427,1782012659000,-500.0,0.00029863,2]
[425869437,1782012659000,-500.0,0.00029863,2]
[425869429,1782012659000,-500.0,0.00029863,2]
[425869430,1782012659000,-500.0,0.00029863,2]
[425869428,1782012659000,-573.86,0.00029863,2]
[425869431,1782012659000,-562.70274818,0.00029863,2]
[425869434,1782012659000,-835.92,0.00029863,2]
[425869435,1782012659000,-500.0,0.00029863,2]
[425869426,1782012659000,-4964.73,0.00029863,2]
[425869433,1782012659000,-500.0,0.00029863,2]
[425869432,1782012659000,-566.74,0.00029863,2]
[425869439,1782012659000,-500.0,0.00029863,2]
[425869436,1782012659000,-500.0,0.00029863,2]
[425869450,1782012659000,-500.0,0.00029863,2]
[425869453,1782012659000,-500.0,0.00029863,2]
[425869449,1782012659000,-896.77,0.00029863,2]
[425869448,1782012659000,-500.0,0.00029863,2]
[425869447,1782012659000,-4954.61,0.00029863,2]
[425869441,1782012659000,-886.26,0.00029863,2]
[425869444,1782012659000,-712.22,0.00029863,2]
[425869446,1782012659000,-500.0,0.00029863,2]
[425869442,1782012659000,-500.0,0.00029863,2]
[425869445,1782012659000,-772.27,0.00029863,2]
[425869440,1782012659000,-500.0,0.00029863,2]
[425869438,1782012659000,-500.0,0.00029863,2]
[425869443,1782012659000,-500.0,0.00029863,2]
[425869515,1782012660000,-300.0,0.00029863,2]
[425869525,1782012660000,-500.0,0.00029863,2]
[425869521,1782012660000,-568.0,0.00029863,2]
[425869519,1782012660000,-500.0,0.00029863,2]
[425869523,1782012660000,-500.0,0.00029863,2]
[425869520,1782012660000,-500.0,0.00029863,2]
[425869516,1782012660000,-300.0,0.00029863,2]
[425869518,1782012660000,-500.0,0.00029863,2]
[425869513,1782012660000,-500.0,0.00029863,2]
[425869514,1782012660000,-500.0,0.00029863,2]
[425869526,1782012660000,-608.87,0.00029863,2]
[425869517,1782012660000,-768.17,0.00029863,2]
[425869530,1782012660000,-500.0,0.00029863,2]
[425869542,1782012660000,-769.83,0.00029863,2]
[425869533,1782012660000,-500.0,0.00029863,2]
[425869535,1782012660000,-741.12,0.00029863,2]
[425869529,1782012660000,-663.69,0.00029863,2]
[425869528,1782012660000,-852.64,0.00029863,2]
[425869527,1782012660000,-509.94156455,0.00029863,2]
[425869532,1782012660000,-500.0,0.00029863,2]
[425869536,1782012660000,-500.0,0.00029863,2]
[425869537,1782012660000,-500.0,0.00029863,2]
[425869534,1782012660000,-500.0,0.00029863,2]
[425869538,1782012660000,-367.391338,0.00029863,2]
[425869539,1782012660000,-624.26,0.00029863,2]
[425869512,1782012660000,-726.74,0.00029863,2]
[425869531,1782012660000,-500.0,0.00029863,2]
[425869522,1782012660000,-500.0,0.00029863,2]
[425869485,1782012660000,-500.0,0.00029863,2]
[425869511,1782012660000,-500.0,0.00029863,2]
[425869483,1782012660000,-653.04,0.00029863,2]
[425869549,1782012660000,-500.0,0.00029863,2]
[425869495,1782012660000,-875.04,0.00029863,2]
[425869484,1782012660000,-500.0,0.00029863,2]
[425869497,1782012660000,-500.0,0.00029863,2]
[425869496,1782012660000,-861.91,0.00029863,2]
[425869486,1782012660000,-500.0,0.00029863,2]
[425869487,1782012660000,-1157.36,0.00029863,2]
[425869491,1782012660000,-1000.0,0.00029863,2]
[425869493,1782012660000,-5471.52,0.00029863,2]
[425869492,1782012660000,-576.1,0.00029863,2]
[425869494,1782012660000,-500.0,0.00029863,2]
[425869489,1782012660000,-652.47,0.00029863,2]
[425869524,1782012660000,-500.0,0.00029863,2]
[425869490,1782012660000,-500.0,0.00029863,2]
[425869498,1782012660000,-500.0,0.00029863,2]
[425869499,1782012660000,-521.26,0.00029863,2]
[425869500,1782012660000,-500.0,0.00029863,2]
[425869502,1782012660000,-500.0,0.00029863,2]
[425869507,1782012660000,-500.0,0.00029863,2]
[425869504,1782012660000,-500.0,0.00029863,2]
[425869501,1782012660000,-500.0,0.00029863,2]
[425869506,1782012660000,-1487.34,0.00029863,2]
[425869509,1782012660000,-500.0,0.00029863,2]
[425869503,1782012660000,-500.0,0.00029863,2]
[425869505,1782012660000,-500.0,0.00029863,2]
[425869508,1782012660000,-833.31,0.00029863,2]
[425869510,1782012660000,-500.0,0.00029863,2]
[425869488,1782012660000,-1255.28,0.00029863,2]
[425869550,1782012660000,-500.0,0.00029863,2]
[425869547,1782012660000,-7914.34,0.00029863,2]
[425869541,1782012660000,-500.0,0.00029863,2]
[425869572,1782012660000,-500.0,0.00029863,2]
[425869576,1782012660000,-500.0,0.00029863,2]
[425869575,1782012660000,-500.0,0.00029863,2]
[425869578,1782012660000,-626.55,0.00029863,2]
[425869577,1782012660000,-1713.94,0.00029863,2]
[425869584,1782012660000,-523.29,0.00029863,2]
[425869587,1782012660000,-500.0,0.00029863,2]
[425869583,1782012660000,-500.0,0.00029863,2]
[425869586,1782012660000,-1088.56,0.00029863,2]
[425869585,1782012660000,-932.54,0.00029863,2]
[425869589,1782012660000,-500.0,0.00029863,2]
[425869592,1782012660000,-500.0,0.00029863,2]
[425869588,1782012660000,-34471.253124,0.00029863,2]
[425869590,1782012660000,-500.0,0.00029863,2]
[425869594,1782012660000,-935.58,0.00029863,2]
[425869593,1782012660000,-500.0,0.00029863,2]
[425869596,1782012660000,-500.0,0.00029863,2]
[425869601,1782012660000,-500.0,0.00029863,2]
[425869599,1782012660000,-7269.77,0.00029863,2]
[425869602,1782012660000,-1065.67,0.00029863,2]
[425869597,1782012660000,-500.0,0.00029863,2]
[425869598,1782012660000,-500.0,0.00029863,2]
[425869600,1782012660000,-500.0,0.00029863,2]
[425869595,1782012660000,-467.72194477,0.00029863,2]
[425869603,1782012660000,-612.86964462,0.00029863,2]
[425869604,1782012660000,-500.0,0.00029863,2]
[425869540,1782012660000,-500.0,0.00029863,2]
[425869574,1782012660000,-811.07,0.00029863,2]
[425869582,1782012660000,-500.0,0.00029863,2]
[425869591,1782012660000,-500.0,0.00029863,2]
[425869580,1782012660000,-500.0,0.00029863,2]
[425869543,1782012660000,-500.0,0.00029863,2]
[425869579,1782012660000,-500.0,0.00029863,2]
[425869546,1782012660000,-500.0,0.00029863,2]
[425869544,1782012660000,-6854.81,0.00029863,2]
[425869548,1782012660000,-500.0,0.00029863,2]
[425869545,1782012660000,-500.0,0.00029863,2]
[425869552,1782012660000,-500.0,0.00029863,2]
[425869551,1782012660000,-544.0540002,0.00029863,2]